bitfinex-derivatives/quotes_SOLF0:USTF0_20250328
["timestamp","ask_amount","ask_price","bid_price","bid_amount"]
[1743153297158,37.85741316,130.72,130.64,27.96]
[1743153297361,7.6536,130.71,130.67,9.89741316]
[1743153297551,37.85741316,130.72,130.69,7.6545]
[1743153297953,45.56853753,130.72,130.69,7.70984721]
[1743153298262,0.05802437,130.72,130.71,9.89741316]
[1743153298763,0.05802437,130.72,130.71,7.6534]
[1743153300360,0.05802437,130.72,130.69,9.95276037]
[1743153300965,0.05802437,130.72,130.69,17.60676037]
[1743153301656,0.05802437,130.72,130.71,7.6534]
[1743153302059,0.05802437,130.72,130.71,17.55081316]
[1743153302258,2.437e-05,130.72,130.71,17.55081316]
[1743153302563,42.15098638,130.77,130.71,9.89741316]
[1743153302757,77.76118638,130.77,130.73,9.89741316]
[1743153302963,80.00839954,130.77,130.72,9.89741316]
[1743153303265,7.6513,130.75,130.72,9.89741316]
[1743153303467,9.89741316,130.74,130.73,0.05185489]
[1743153303666,9.89741316,130.74,130.69,9.89741316]
[1743153303855,9.89741316,130.74,130.71,7.6531]
[1743153304164,9.89741316,130.74,130.7,9.89741316]
[1743153304364,9.9509859,130.74,130.71,0.04993324]
[1743153304553,7.6522,130.73,130.71,0.04993324]
[1743153305055,17.6029859,130.74,130.71,7.70323324]
[1743153305467,0.05357274,130.74,130.71,0.04993324]
[1743153305667,0.05357274,130.74,130.72,7.6527]
[1743153307464,0.05357274,130.74,130.71,0.04993324]
[1743153308763,7.70527274,130.74,130.71,0.04993324]
[1743153309685,0.05357274,130.74,130.71,0.04993324]
[1743153310084,7.70557274,130.74,130.71,0.04993324]
[1743153310482,0.05357274,130.74,130.71,9.9473464]
[1743153310987,7.70517274,130.74,130.71,9.9473464]
[1743153311179,0.05357274,130.74,130.71,9.9473464]
[1743153311379,7.6525,130.73,130.71,0.04993324]
[1743153311582,0.05357274,130.74,130.71,0.04993324]
[1743153311781,9.9509859,130.74,130.71,0.04993324]
[1743153311988,7.6522,130.73,130.71,0.04993324]
[1743153312482,7.6528,130.72,130.71,0.04993324]
[1743153315283,0.05357274,130.74,130.71,9.9473464]
[1743153315482,0.05357274,130.74,130.73,9.89741316]
[1743153316690,0.05357274,130.74,130.73,17.54961316]
[1743153317588,77.76068638,130.78,130.74,7.6514]
[1743153317789,77.76068638,130.78,130.74,17.54881316]
[1743153317991,49.80068638,130.78,130.74,17.54881316]
[1743153318380,42.15098638,130.78,130.74,9.89741316]
[1743153318583,52.04839954,130.78,130.73,9.89741316]
[1743153318783,0.05696774,130.77,130.75,0.05543489]
[1743153319885,7.6505,130.76,130.75,0.05543489]
[1743153320189,17.54791316,130.76,130.75,0.05543489]
[1743153322281,7.6505,130.76,130.75,0.05543489]
[1743153324482,7.70716774,130.77,130.75,0.05543489]
[1743153325794,7.70716774,130.77,130.75,7.70643489]
[1743153326095,7.70716774,130.77,130.75,0.05543489]
[1743153326490,7.6505,130.76,130.75,0.05543489]
[1743153326793,0.05696774,130.77,130.75,0.05543489]
[1743153326988,7.70726774,130.77,130.75,0.05543489]
[1743153327792,7.70726774,130.77,130.75,7.70623489]
[1743153327993,7.70726774,130.77,130.75,0.05543489]
[1743153329493,7.70726774,130.77,130.75,7.70633489]
[1743153329795,0.05696774,130.77,130.75,7.70633489]
[1743153330396,0.05696774,130.77,130.76,7.6505]
[1743153330898,0.05696774,130.77,130.75,7.70613489]
[1743153331197,7.70686774,130.77,130.75,7.70613489]
[1743153331497,9.89741316,130.76,130.75,0.05543489]
[1743153331899,17.54791316,130.76,130.75,0.05543489]
[1743153332488,9.89741316,130.76,130.75,0.05543489]
[1743153333297,17.54791316,130.76,130.75,0.05543489]
[1743153339890,7.6532,130.72,130.68,11.95061316]
[1743153340502,7.6532,130.72,130.69,7.6542]
[1743153340995,0.05354054,130.72,130.69,7.70839665]
[1743153341202,0.05354054,130.72,130.7,7.6539]
[1743153341697,0.05354054,130.72,130.71,7.6534]
[1743153342004,0.05354054,130.72,130.71,17.55081316]
[1743153342204,42.15098638,130.77,130.71,9.89741316]
[1743153342398,42.15098638,130.77,130.76,7.6505]
[1743153344101,28.01706846,130.78,130.76,7.6505]
[1743153344503,28.01706846,130.78,130.77,7.6499]
[1743153344807,0.05706846,130.78,130.75,9.95362238]
[1743153344996,0.05706846,130.78,130.76,9.89741316]
[1743153345196,0.05706846,130.78,130.77,7.6499]
[1743153346003,0.05706846,130.78,130.76,7.6502]
[1743153346303,0.05706846,130.78,130.75,9.95362238]
[1743153346992,0.05706846,130.78,130.77,17.54731316]
[1743153347703,42.15098638,130.82,130.8,9.89741316]
[1743153348701,42.20728183,130.82,130.8,9.9502089]
[1743153349200,42.20728183,130.82,130.8,0.05279574]
[1743153349903,49.85428183,130.82,130.8,0.05279574]
[1743153350103,52.10469499,130.82,130.8,0.05279574]
[1743153350506,9.95370861,130.82,130.8,0.05279574]
[1743153350811,7.6475,130.81,130.8,0.05279574]
[1743153351806,7.70349545,130.82,130.8,0.05279574]
[1743153352011,0.05629545,130.82,130.8,9.9502089]
[1743153352307,0.05629545,130.82,130.8,17.5980089]
[1743153352903,0.05629545,130.82,130.8,9.9502089]
[1743153353407,7.70329545,130.82,130.8,9.9502089]
[1743153353707,0.05629545,130.82,130.8,9.9502089]
[1743153354306,0.05629545,130.82,130.8,0.05279574]
[1743153354802,0.05629545,130.82,130.8,9.9502089]
[1743153355009,0.05629545,130.82,130.8,17.5980089]
[1743153355314,0.05629545,130.82,130.81,9.89741316]
[1743153355508,42.15098638,130.86,130.81,9.89741316]
[1743153355709,42.15098638,130.86,130.82,9.89741316]
[1743153355904,49.79568638,130.86,130.83,7.6459]
[1743153356206,59.69309954,130.86,130.83,7.6459]
[1743153356406,17.54211316,130.86,130.83,7.6459]
[1743153356800,17.59617154,130.86,130.83,0.05749177]
[1743153357502,17.59617154,130.86,130.83,7.70349177]
[1743153358506,0.05405838,130.86,130.84,7.6457]
[1743153358802,0.05405838,130.86,130.83,9.95490493]
[1743153359009,0.05405838,130.86,130.84,9.89741316]
[1743153360208,0.05405838,130.86,130.85,7.6452]
[1743153360707,0.05405838,130.86,130.84,17.54311316]
[1743153361009,0.05405838,130.86,130.84,9.89741316]
[1743153361509,37.83741316,130.85,130.83,0.05749177]
[1743153361708,9.89741316,130.84,130.83,0.05749177]
[1743153361906,7.6473,130.82,130.77,11.85771316]
[1743153362205,27.92,130.87,130.81,17.54461316]
[1743153362407,9.89741316,130.87,130.82,9.89741316]
[1743153362605,9.89741316,130.86,130.79,27.92]
[1743153362805,9.89741316,130.86,130.82,9.89741316]
[1743153363009,7.6461,130.84,130.82,9.89741316]
[1743153363309,37.87306651,130.85,130.83,0.04842601]
[1743153363509,7.6468,130.83,130.8,9.89741316]
[1743153363710,37.81741316,130.84,130.83,0.05014454]
[1743153363910,37.81741316,130.84,130.79,9.89741316]
[1743153364205,37.81741316,130.84,130.76,11.90571316]
[1743153364206,9.89741316,130.81,130.76,11.90571316]
[1743153364413,9.89741316,130.8,130.76,2.0083]
[1743153364709,7.6503,130.77,130.75,252.38]
[1743153364898,7.6503,130.77,130.74,9.89741316]
[1743153365305,7.70075317,130.77,130.74,9.94588222]
[1743153366206,0.05045317,130.77,130.74,9.94588222]
[1743153366905,0.05045317,130.77,130.74,0.04846906]
[1743153367505,7.6507,130.76,130.74,0.04846906]
[1743153367906,0.05045317,130.77,130.75,15.47785893]
[1743153368301,0.05045317,130.77,130.74,0.04846906]
[1743153368506,7.70055317,130.77,130.74,0.04846906]
[1743153368715,0.05045317,130.77,130.74,0.04846906]
[1743153369505,7.70065317,130.77,130.74,0.04846906]
[1743153370311,7.6506,130.76,130.74,0.04846906]
[1743153371201,7.70045317,130.77,130.74,0.04846906]
[1743153372007,7.6505,130.76,130.74,0.04846906]
[1743153372913,7.70055317,130.77,130.74,0.04846906]
[1743153373715,7.70055317,130.77,130.74,7.69986906]
[1743153373914,0.05045317,130.77,130.74,0.04846906]
[1743153375210,0.05045317,130.77,130.75,7.6507]
[1743153375414,0.05045317,130.77,130.74,0.04846906]
[1743153375615,0.05045317,130.77,130.75,15.47785893]
[1743153375817,0.05045317,130.77,130.76,7.6505]
[1743153376011,0.05045317,130.77,130.75,15.47785893]
[1743153376213,0.05045317,130.77,130.75,23.12875893]
[1743153376718,0.05045317,130.77,130.75,15.47785893]
[1743153376917,0.05045317,130.77,130.74,0.04846906]
[1743153377914,0.05045317,130.77,130.75,7.651]
[1743153379324,0.05045317,130.77,130.76,7.6505]
[1743153380213,0.05045317,130.77,130.75,7.6508]
[1743153380915,0.05045317,130.77,130.74,7.69986906]
[1743153381616,0.05045317,130.77,130.74,0.04846906]
[1743153382322,0.05045317,130.77,130.74,7.69996906]
[1743153382621,0.05045317,130.77,130.74,0.04846906]
[1743153383024,0.05045317,130.77,130.74,7.69976906]
[1743153383324,0.05045317,130.77,130.74,0.04846906]
[1743153383520,0.05045317,130.77,130.75,7.651]
[1743153383921,0.05045317,130.77,130.76,7.6505]
[1743153384223,0.05045317,130.77,130.75,15.47785893]
[1743153384626,0.05045317,130.77,130.76,7.6505]
[1743153385422,0.05045317,130.77,130.75,23.12865893]
[1743153385923,0.05045317,130.77,130.75,15.47785893]
[1743153388237,0.05045317,130.77,130.75,23.12865893]
[1743153388825,0.05045317,130.77,130.76,9.90142871]
[1743153389133,0.05045317,130.77,130.76,17.55192871]
[1743153389722,0.05045317,130.77,130.74,0.04846906]
[1743153389927,0.05045317,130.77,130.74,9.94989777]
[1743153390126,7.651,130.76,130.74,9.94989777]
[1743153390624,0.05045317,130.77,130.74,9.94989777]
[1743153390830,7.6507,130.76,130.75,9.90142871]
[1743153391830,7.70065317,130.77,130.75,9.90142871]
[1743153393130,0.05045317,130.77,130.76,9.90142871]
[1743153395532,0.05045317,130.77,130.76,17.55192871]
[1743153395830,20.4391753,130.82,130.76,9.90142871]
[1743153395831,27.92,130.82,130.76,9.90142871]
[1743153396035,27.92,130.82,130.8,9.90142871]
[1743153396933,27.97422655,130.82,130.8,9.95188724]
[1743153397532,27.97422655,130.82,130.8,17.59998724]
[1743153399138,27.97422655,130.82,130.8,7.69855853]
[1743153399833,27.97422655,130.82,130.81,7.6475]
[1743153400540,27.97422655,130.82,130.8,17.59968724]
[1743153400739,0.05422655,130.82,130.8,17.59968724]
[1743153401033,7.70132655,130.82,130.8,7.69825853]
[1743153401233,0.05422655,130.82,130.8,0.05045853]
[1743153401939,7.70152655,130.82,130.8,0.05045853]
[1743153402737,7.6475,130.81,130.8,0.05045853]
[1743153406145,9.90142871,130.81,130.76,9.90142871]
[1743153406447,27.92,130.8,130.76,9.90142871]
[1743153406649,27.92,130.8,130.78,17.55062871]
[1743153406855,27.92,130.8,130.78,9.90142871]
[1743153407147,27.92,130.8,130.78,17.55062871]
[1743153407348,27.96834587,130.8,130.78,17.60625514]
[1743153408043,0.04834587,130.8,130.78,17.60625514]
[1743153408935,7.69644587,130.8,130.78,17.60625514]
[1743153409543,0.04834587,130.8,130.78,17.60625514]
[1743153411448,0.04834587,130.8,130.79,7.6487]
[1743153411751,0.04834587,130.8,130.79,17.55012871]
[1743153414060,0.04834587,130.8,130.79,9.90142871]
[1743153415558,0.04834587,130.8,130.78,9.95705514]
[1743153416057,7.69664587,130.8,130.78,9.95705514]
[1743153416255,0.04834587,130.8,130.78,9.95705514]
[1743153416657,7.69674587,130.8,130.78,9.95705514]
[1743153417662,7.6487,130.79,130.78,0.05562643]
[1743153418155,35.5687,130.79,130.78,0.05562643]
[1743153418553,7.651,130.75,130.74,9.90142871]
[1743153418861,9.90142871,130.78,130.73,262.22142871]
[1743153419052,7.6515,130.75,130.73,262.22142871]
[1743153419253,7.6515,130.75,130.73,9.90142871]
[1743153419553,9.90142871,130.78,130.73,9.90142871]
[1743153419753,0.05153097,130.75,130.73,9.95112856]
[1743153420860,7.6516,130.74,130.73,9.95112856]
[1743153421055,7.6516,130.74,130.73,0.04969985]
[1743153425366,9.95295968,130.75,130.68,9.6301]
[1743153425367,7.6527,130.73,130.68,9.6301]
[1743153425666,35.5727,130.73,130.7,9.90142871]
[1743153426070,7.6528,130.72,130.7,9.90142871]
[1743153426461,27.92,130.73,130.7,9.90142871]
[1743153426662,0.05565878,130.72,130.7,9.9506143]
[1743153430068,0.05565878,130.72,130.7,0.04918559]
[1743153430568,7.70865878,130.72,130.7,0.04918559]
[1743153430863,0.05565878,130.72,130.7,9.9506143]
[1743153431069,0.05565878,130.72,130.71,17.55482871]
[1743153436978,0.05565878,130.72,130.71,9.90142871]
[1743153439879,0.05565878,130.72,130.7,0.04918559]
[1743153440080,7.6534,130.71,130.7,0.04918559]
[1743153441074,7.6534,130.71,130.68,11.87662871]
[1743153441075,9.90142871,130.71,130.62,1.3313949]
[1743153441382,9.90142871,130.69,130.64,9.90142871]
[1743153442071,9.90142871,130.69,130.63,7.6578]
[1743153442271,9.95194045,130.68,130.65,0.05061931]
[1743153442476,27.92,130.67,130.65,0.05061931]
[1743153443373,35.576,130.67,130.65,0.05061931]
[1743153444478,27.92,130.67,130.65,0.05061931]
[1743153445776,35.5758,130.67,130.65,0.05061931]
[1743153446281,27.92,130.67,130.65,0.05061931]
[1743153446682,0.05051174,130.68,130.66,9.90142871]
[1743153446878,0.05051174,130.68,130.67,9.90142871]
[1743153447581,0.05051174,130.68,130.66,9.90142871]
[1743153447781,0.05051174,130.68,130.66,17.55762871]
[1743153447979,0.05051174,130.68,130.66,9.90142871]
[1743153448180,0.05051174,130.68,130.67,9.90142871]
[1743153448371,0.05051174,130.68,130.67,17.55712871]
[1743153450986,0.05051174,130.68,130.67,7.6557]
[1743153451787,0.05051174,130.68,130.66,7.6561]
[1743153452085,0.05051174,130.68,130.66,9.90142871]
[1743153452388,0.05051174,130.68,130.67,7.6557]
[1743153452581,0.05051174,130.68,130.67,17.55712871]
[1743153452780,0.05051174,130.68,130.66,9.90142871]
[1743153452981,0.05051174,130.68,130.66,17.55742871]
[1743153453182,0.05051174,130.68,130.65,0.05061931]
[1743153453788,0.05051174,130.68,130.65,9.95204802]
[1743153453988,0.05051174,130.68,130.67,9.90142871]
[1743153454190,0.05051174,130.68,130.66,9.90142871]
[1743153454690,0.05051174,130.68,130.67,9.90142871]
[1743153454987,0.05051174,130.68,130.66,9.90142871]
[1743153455189,0.05051174,130.68,130.65,9.95204802]
[1743153455380,0.05051174,130.68,130.65,0.05061931]
[1743153455691,7.6561,130.67,130.65,0.05061931]
[1743153456190,0.05051174,130.68,130.65,0.05061931]
[1743153456381,35.5761,130.67,130.65,0.05061931]
[1743153456586,27.92,130.67,130.65,0.05061931]
[1743153456986,7.6563,130.66,130.65,0.05061931]
[1743153458886,35.576,130.67,130.65,0.05061931]
[1743153459082,35.576,130.67,130.65,9.95204802]
[1743153459278,27.92,130.67,130.66,9.90142871]
[1743153459582,0.05051174,130.68,130.66,17.55772871]
[1743153459986,0.05051174,130.68,130.66,9.90142871]
[1743153460588,0.05051174,130.68,130.66,17.55772871]
[1743153460780,7.70571174,130.68,130.65,9.95204802]
[1743153460980,0.05051174,130.68,130.65,9.95204802]
[1743153461892,7.6557,130.67,130.65,9.95204802]
[1743153462092,7.6557,130.67,130.65,0.05061931]
[1743153462596,7.6563,130.66,130.65,0.05061931]
[1743153463086,0.05051174,130.68,130.65,0.05061931]
[1743153463291,7.6561,130.67,130.65,0.05061931]
[1743153463595,0.05051174,130.68,130.66,9.90142871]
[1743153463796,0.05051174,130.68,130.67,7.6557]
[1743153463996,0.05051174,130.68,130.66,9.90142871]
[1743153464398,0.05051174,130.68,130.66,17.55752871]
[1743153464798,7.70571174,130.68,130.66,17.55752871]
[1743153464997,7.70571174,130.68,130.66,9.90142871]
[1743153465299,0.05051174,130.68,130.66,9.90142871]
[1743153465695,7.656,130.67,130.65,9.95204802]
[1743153466099,7.656,130.67,130.65,0.05061931]
[1743153467303,7.6563,130.66,130.65,0.05061931]
[1743153467604,0.05051174,130.68,130.65,0.05061931]
[1743153467807,7.6563,130.67,130.65,0.05061931]
[1743153468400,7.6563,130.66,130.65,0.05061931]
[1743153469404,35.5763,130.66,130.65,0.05061931]
[1743153473906,7.6579,130.64,130.6,254.4708]
[1743153474113,27.92,130.66,130.62,9.90142871]
[1743153474314,27.92,130.66,130.63,9.90142871]
[1743153474509,35.5765,130.66,130.64,9.90142871]
[1743153474717,27.92,130.66,130.65,9.90142871]
[1743153475909,27.92,130.66,130.64,17.61531182]
[1743153478918,27.92,130.66,130.64,7.71388311]
[1743153479106,27.92,130.66,130.64,0.05678311]
[1743153479817,35.5766,130.66,130.64,0.05678311]
[1743153480317,27.92,130.66,130.64,0.05678311]
[1743153480716,27.92,130.66,130.65,7.6569]
[1743153480906,27.92,130.66,130.64,0.05678311]
[1743153481113,0.05401588,130.67,130.65,9.90142871]
[1743153481313,0.05401588,130.67,130.66,7.6563]
[1743153482213,42.15098638,130.7,130.69,7.6546]
[1743153482419,84.30197278,130.71,130.69,9.90142871]
[1743153482620,84.30197278,130.71,130.7,17.55542871]
[1743153483117,42.02075533,130.72,130.7,9.90142871]
[1743153483319,42.07397539,130.72,130.71,17.55482871]
[1743153485720,0.05322006,130.72,130.71,17.55482871]
[1743153485917,7.6537,130.71,130.69,0.05679967]
[1743153486424,9.95464877,130.72,130.69,0.05679967]
[1743153486611,7.654,130.7,130.69,0.05679967]
[1743153487015,37.82142871,130.71,130.69,0.05679967]
[1743153487616,7.654,130.7,130.69,0.05679967]
[1743153489520,7.6557,130.68,130.64,7.6572]
[1743153489726,35.5557,130.68,130.64,7.6572]
[1743153489916,35.5557,130.68,130.65,7.6569]
[1743153490121,35.5557,130.68,130.62,268.03896105]
[1743153490519,0.05720809,130.66,130.64,7.70983541]
[1743153491029,0.05720809,130.66,130.64,0.05283541]
[1743153491624,0.05720809,130.66,130.64,7.71003541]
[1743153492830,0.05720809,130.66,130.65,7.6569]
[1743153493926,0.05720809,130.66,130.64,7.70983541]
[1743153494322,0.05720809,130.66,130.64,0.05283541]
[1743153494524,0.05720809,130.66,130.65,7.6569]
[1743153495529,7.654,130.7,130.67,7.6556]
[1743153495732,27.9,130.71,130.64,15.49896105]
[1743153496231,7.6549,130.69,130.64,15.49896105]
[1743153496633,0.04819257,130.68,130.65,0.05843077]
[1743153496931,0.04819257,130.68,130.66,7.6563]
[1743153499847,0.04819257,130.68,130.65,7.71503077]
[1743153500557,0.04819257,130.68,130.65,0.05843077]
[1743153500768,7.70339257,130.68,130.65,0.05843077]
[1743153500958,0.04819257,130.68,130.65,0.05843077]
[1743153501461,0.04819257,130.68,130.65,7.71483077]
[1743153501862,7.70349257,130.68,130.65,7.71483077]
[1743153502761,0.04819257,130.68,130.66,7.6563]
[1743153505447,7.70339257,130.68,130.65,7.71503077]
[1743153506140,7.70339257,130.68,130.65,0.05843077]
[1743153506343,7.6563,130.66,130.65,0.05843077]
[1743153506541,27.94819257,130.68,130.65,0.05843077]
[1743153506933,32.09059257,130.68,130.65,0.05843077]
[1743153507332,0.04819257,130.68,130.65,0.05843077]
[1743153507941,7.70369257,130.68,130.65,0.05843077]
[1743153508337,0.04819257,130.68,130.65,0.05843077]
[1743153509041,7.6563,130.66,130.65,0.05843077]
[1743153509249,35.5563,130.66,130.65,0.05843077]
[1743153512938,7.658,130.64,130.62,9.9230499]
[1743153513544,7.658,130.64,130.63,9.9230499]
[1743153514541,7.70685565,130.65,130.63,9.9230499]
[1743153517848,7.70685565,130.65,130.63,17.5809499]
[1743153518445,7.70685565,130.65,130.63,9.9230499]
[1743153519554,7.70685565,130.65,130.63,17.5810499]
[1743153519738,7.70685565,130.65,130.63,9.9230499]
[1743153520448,7.6575,130.64,130.63,9.9230499]
[1743153520651,7.6575,130.64,130.62,17.63931699]
[1743153522547,7.6575,130.64,130.62,9.98101699]
[1743153522748,7.6581,130.63,130.62,0.05796709]
[1743153523542,35.5581,130.63,130.62,0.05796709]
[1743153529062,7.6581,130.63,130.62,0.05796709]
[1743153533858,0.04995565,130.65,130.63,7.6581]
[1743153534160,0.04995565,130.65,130.64,9.9230499]
[1743153534572,0.04995565,130.65,130.63,9.9230499]
[1743153534954,7.70715565,130.65,130.63,9.9230499]
[1743153535159,0.04995565,130.65,130.62,0.05796709]
[1743153535656,0.04995565,130.65,130.62,7.71656709]
[1743153535962,0.04995565,130.65,130.62,0.05796709]
[1743153536152,7.6578,130.64,130.62,0.05796709]
[1743153536351,9.97300555,130.65,130.62,0.05796709]
[1743153536861,0.04995565,130.65,130.62,9.98101699]
[1743153537356,9.97300555,130.65,130.62,0.05796709]
[1743153537758,7.6581,130.63,130.62,0.05796709]
[1743153538359,0.04995565,130.65,130.62,9.98101699]
[1743153538662,0.04995565,130.65,130.63,9.9230499]
[1743153538857,0.04995565,130.65,130.64,9.9230499]
[1743153539257,0.04995565,130.65,130.62,9.98101699]
[1743153539659,0.04995565,130.65,130.63,9.9230499]
[1743153540564,7.70715565,130.65,130.63,9.9230499]
[1743153541066,0.04995565,130.65,130.64,9.9230499]
[1743153541565,7.70685565,130.65,130.64,9.9230499]
[1743153542761,0.04995565,130.65,130.64,9.9230499]
[1743153543158,27.9,130.7,130.67,9.9230499]
[1743153544068,27.9,130.7,130.63,7.6578]
[1743153544262,37.88150074,130.7,130.67,0.05232355]
[1743153544765,7.6551,130.68,130.67,0.05232355]
[1743153549070,7.6575,130.65,130.45,1834.44162602]
[1743153549367,37.8230499,130.67,130.6,7.6595]
[1743153549581,7.657,130.65,130.62,9.9230499]
[1743153549869,7.657,130.65,130.63,9.9230499]
[1743153550368,7.6575,130.64,130.63,0.05587411]
[1743153550563,37.8230499,130.64,130.6,9.9230499]
[1743153550963,27.9,130.64,130.62,9.9230499]
[1743153551366,35.5578,130.64,130.62,9.9230499]
[1743153551566,27.9,130.66,130.62,9.9230499]
[1743153551768,0.05308861,130.64,130.63,9.9230499]
[1743153552663,9.9230499,130.71,130.63,9.9230499]
[1743153552864,27.9,130.7,130.66,9.9230499]
[1743153553064,7.655,130.69,130.66,9.9230499]
[1743153553272,9.9230499,130.69,130.64,9.9230499]
[1743153553978,0.05525997,130.68,130.65,0.05737116]
[1743153554173,7.6563,130.66,130.65,0.05737116]
[1743153554879,7.6563,130.66,130.65,9.98042106]
[1743153555283,17.5793499,130.66,130.65,0.05737116]
[1743153556374,17.5793499,130.66,130.65,7.116e-05]
[1743153557379,45.4793499,130.66,130.65,7.116e-05]
[1743153557576,0.05525997,130.68,130.65,7.116e-05]
[1743153557779,0.05525997,130.68,130.66,9.9230499]
[1743153557981,0.05525997,130.68,130.65,7.116e-05]
[1743153557982,0.05525997,130.68,130.67,9.9230499]
[1743153558183,96.65829501,130.75,130.67,9.9230499]
[1743153558480,9.9230499,130.73,130.68,9.9230499]
[1743153558681,41.99503937,130.71,130.7,9.9230499]
[1743153559073,41.99503937,130.71,130.69,17.5772499]
[1743153559281,41.99503937,130.71,130.69,0.05402677]
[1743153559481,41.99503937,130.71,130.69,9.97707667]
[1743153559681,41.99503937,130.71,130.7,17.5770499]
[1743153559882,83.99655603,130.72,130.7,9.9230499]
[1743153560285,93.91960593,130.72,130.69,0.05402677]
[1743153560488,83.99655603,130.72,130.69,0.05402677]
[1743153561290,91.64985603,130.72,130.69,0.05402677]
[1743153561482,0.05779227,130.72,130.69,0.05402677]
[1743153561887,35.7138,130.71,130.69,0.05402677]
[1743153562082,28.06,130.71,130.69,0.05402677]
[1743153562289,15.48783281,130.7,130.62,15.48783281]
[1743153562486,7.656,130.67,130.62,15.48783281]
[1743153562687,28.06,130.68,130.62,23.14603281]
[1743153562881,7.6561,130.67,130.62,23.14603281]
[1743153563088,7.6561,130.67,130.62,7.6582]
[1743153563289,28.06,130.68,130.62,7.6585]
[1743153563582,0.05079369,130.66,130.63,0.04789402]
[1743153563796,0.05079369,130.66,130.64,7.6572]
[1743153564093,0.05079369,130.66,130.63,0.04789402]
[1743153564391,7.70749369,130.66,130.63,0.04789402]
[1743153564605,0.05079369,130.66,130.63,0.04789402]
[1743153565997,0.05079369,130.66,130.63,7.70569402]
[1743153567006,0.05079369,130.66,130.65,7.6569]
[1743153567999,9.369e-05,130.66,130.65,15.3169]
[1743153568907,28.08,130.74,130.65,7.66]
[1743153569105,4.0823,130.75,130.68,15.48783281]
[1743153569303,1.9734,130.75,130.68,43.60783281]
[1743153569606,1.9734,130.75,130.7,7.6535]
[1743153569607,9.6247,130.75,130.7,7.6535]
[1743153570002,7.7006891,130.74,130.71,0.05561582]
[1743153570403,0.0490891,130.74,130.71,0.05561582]
[1743153571305,7.7009891,130.74,130.71,0.05561582]
[1743153571501,0.0490891,130.74,130.71,0.05561582]
[1743153572503,0.0490891,130.74,130.72,7.6523]
[1743153572706,0.0490891,130.74,130.72,15.48783281]
[1743153573007,2.092,130.81,130.74,15.48783281]
[1743153573299,30.192,130.81,130.72,43.58783281]
[1743153573505,15.48783281,130.8,130.72,43.58783281]
[1743153573707,7.649,130.79,130.74,7.6513]
[1743153573903,0.05480762,130.78,130.75,0.05013298]
[1743153574298,28.21480762,130.78,130.75,0.05013298]
[1743153575709,35.86430762,130.78,130.75,0.05013298]
[1743153575910,28.21480762,130.78,130.75,0.05013298]
[1743153577003,0.05480762,130.78,130.75,0.05013298]
[1743153577908,0.05480762,130.78,130.76,7.6499]
[1743153578100,0.05480762,130.78,130.75,0.05013298]
[1743153578301,0.05480762,130.78,130.77,7.6499]
[1743153579007,0.05480762,130.78,130.76,7.65]
[1743153579207,28.18,130.77,130.75,0.05013298]
[1743153579512,43.66783281,130.77,130.75,0.05013298]
[1743153579904,43.66783281,130.77,130.67,268.00783281]
[1743153580108,15.48783281,130.75,130.67,268.00783281]
[1743153580407,28.32,130.74,130.67,268.00783281]
[1743153580606,28.32,130.74,130.71,7.6532]
[1743153580799,28.32,130.74,130.67,268.00783281]
[1743153581011,28.37263341,130.74,130.71,0.05370022]
[1743153581812,0.05263341,130.74,130.73,7.6522]
[1743153583299,0.05263341,130.74,130.73,23.14003281]
[1743153584518,3.341e-05,130.74,130.73,23.14003281]
[1743153585706,3.341e-05,130.74,130.73,7.6522]
[1743153592517,3.341e-05,130.74,130.73,23.14003281]
[1743153594414,2.092,130.81,130.8,7.6481]
[1743153594617,15.48783281,130.86,130.78,15.48783281]
[1743153594817,22.97,130.97,130.8,15.48783281]
[1743153594818,4.1919,130.87,130.8,15.48783281]
[1743153595122,32.4519,130.87,130.86,7.6446]
[1743153595516,4.1919,130.87,130.86,7.6446]
[1743153596114,0.04823352,130.88,130.87,7.644]
[1743153597627,3.352e-05,130.88,130.87,7.644]
[1743153600921,3.352e-05,130.88,130.85,28.35336157]
[1743153600922,3.352e-05,130.88,130.85,0.05336157]
[1743153603321,7.64383352,130.88,130.85,0.05336157]
[1743153603529,3.352e-05,130.88,130.85,0.05336157]
[1743153603922,3.352e-05,130.88,130.86,15.48783281]
[1743153604722,3.352e-05,130.88,130.87,7.644]
[1743153605427,3.352e-05,130.88,130.85,28.39336157]
[1743153605926,3.352e-05,130.88,130.86,7.6443]
[1743153607129,3.352e-05,130.88,130.85,0.05336157]
[1743153607323,4.15653352,130.88,130.83,252.34]
[1743153607523,15.48783281,130.87,130.79,15.48783281]
[1743153607728,28.4,130.86,130.77,267.70783281]
[1743153607930,15.48783281,130.85,130.77,296.12783281]
[1743153608131,15.48783281,130.85,130.77,280.64]